bitfinex/quotes_SOLUSD_20230101
["timestamp","ask_amount","ask_price","bid_price","bid_amount"]
[1672578392733,35.51,9.9724,9.9573,302.3]
[1672578392943,40.0,9.9723,9.9575,302.3]
[1672578393134,40.0,9.9721,9.9578,40.0]
[1672578393345,40.0,9.9719,9.9581,40.0]
[1672578393577,15.51,9.9718,9.9582,377.69]
[1672578393790,40.0,9.9717,9.9583,40.0]
[1672578394010,15.51,9.9716,9.9585,40.0]
[1672578394196,15.51,9.9716,9.9586,75.39]
[1672578394197,40.0,9.9715,9.9586,75.39]
[1672578394411,40.0,9.9713,9.9587,40.0]
[1672578394618,15.52,9.9712,9.9589,40.0]
[1672578394832,40.0,9.9711,9.959,75.39]
[1672578395043,40.0,9.9709,9.9591,40.0]
[1672578395268,15.52,9.9708,9.9593,40.0]
[1672578395481,40.0,9.9707,9.9595,40.0]
[1672578395685,40.0,9.9707,9.9596,75.38]
[1672578395887,40.0,9.9707,9.9597,40.0]
[1672578396098,40.0,9.9705,9.9599,40.0]
[1672578396308,40.0,9.9705,9.9601,40.0]
[1672578396534,40.0,9.9705,9.9602,75.38]
[1672578396737,40.0,9.9703,9.9603,40.0]
[1672578396946,40.0,9.9703,9.9605,40.0]
[1672578397160,40.0,9.9703,9.9607,40.0]
[1672578397379,40.0,9.9701,9.9608,75.37]
[1672578397695,40.0,9.9701,9.9609,40.0]
[1672578397899,40.0,9.9699,9.9611,40.0]
[1672578398214,40.0,9.9699,9.9613,40.0]
[1672578398421,40.0,9.9697,9.9615,40.0]
[1672578399247,40.0,9.9695,9.9615,40.0]
[1672578399885,40.0,9.9693,9.9615,40.0]
[1672578400513,40.0,9.9691,9.9615,40.0]
[1672578401256,40.0,9.9689,9.9615,40.0]
[1672578401778,40.0,9.9687,9.9615,40.0]
[1672578403989,40.0,9.9687,9.9609,40.0]
[1672578405473,40.0,9.9687,9.9611,40.0]
[1672578405688,40.0,9.9687,9.9613,40.0]
[1672578406530,62.8269,9.9687,9.9613,40.0]
[1672578410414,62.8269,9.9687,9.96,75.38]
[1672578410625,40.0,9.9657,9.9594,75.38]
[1672578410843,40.0,9.9657,9.9596,75.38]
[1672578411258,40.0,9.9657,9.9595,40.0]
[1672578413675,69.27128268,9.9658,9.9595,40.0]
[1672578415350,40.0,9.9657,9.9595,40.0]
[1672578418079,69.27128268,9.9658,9.9595,40.0]
[1672578418608,64.2743,9.9685,9.9595,40.0]
[1672578418823,64.2743,9.9685,9.9597,40.0]
[1672578419023,64.2743,9.9685,9.9599,40.0]
[1672578419230,64.2743,9.9685,9.96,75.38]
[1672578419444,64.2743,9.9685,9.9601,40.0]
[1672578419661,64.2743,9.9685,9.9603,40.0]
[1672578419863,64.2743,9.9685,9.9604,75.38]
[1672578420073,64.2743,9.9685,9.9605,40.0]
[1672578420491,40.0,9.9683,9.9605,40.0]
[1672578424388,62.7606,9.9683,9.9605,40.0]
[1672578426605,40.0,9.9681,9.9605,40.0]
[1672578428585,63.2662,9.9681,9.9605,40.0]
[1672578428805,63.2662,9.9681,9.9607,40.0]
[1672578429951,63.2662,9.9681,9.9606,75.38]
[1672578430489,40.0,9.9679,9.9607,40.0]
[1672578432912,62.8949,9.9679,9.9607,40.0]
[1672578434163,22.8949,9.9679,9.9607,40.0]
[1672578434366,138.0062,9.9679,9.9608,75.37]
[1672578434595,138.0062,9.9679,9.9609,40.0]
[1672578434809,138.0062,9.9679,9.9611,40.0]
[1672578435020,138.0062,9.9679,9.9613,40.0]
[1672578435021,62.8949,9.9678,9.9613,40.0]
[1672578435232,62.8949,9.9678,9.9614,75.37]
[1672578435746,40.0,9.9676,9.9613,40.0]
[1672578435959,40.0,9.9676,9.9615,40.0]
[1672578436155,40.0,9.9676,9.9616,75.37]
[1672578436356,40.0,9.9676,9.9615,40.0]
[1672578437201,40.0,9.9676,9.9617,40.0]
[1672578437644,40.0,9.9674,9.9617,40.0]
[1672578439744,40.0,9.9674,9.9616,75.37]
[1672578439953,151.7319,9.9674,9.9613,40.0]
[1672578440146,151.7319,9.9674,9.9615,40.0]
[1672578440355,151.7319,9.9674,9.9611,40.0]
[1672578440356,151.7319,9.9674,9.9616,75.37]
[1672578440565,151.7319,9.9674,9.9612,75.37]
[1672578440788,151.7319,9.9674,9.9492,167.35926682]
[1672578440789,151.7319,9.9674,9.96,75.38]
[1672578441104,151.7319,9.9674,9.9592,75.39]
[1672578441105,176.3346,9.9674,9.9592,75.39]
[1672578441425,176.3346,9.9674,9.9581,40.0]
[1672578441630,176.3346,9.9674,9.9583,40.0]
[1672578441948,40.0,9.9672,9.9585,40.0]
[1672578442257,40.0,9.9672,9.9587,40.0]
[1672578442478,40.0,9.9672,9.9588,75.39]
[1672578442670,40.0,9.9672,9.9589,40.0]
[1672578442882,40.0,9.9672,9.9591,40.0]
[1672578443093,40.0,9.9672,9.9592,75.39]
[1672578443723,40.0,9.9672,9.9587,40.0]
[1672578444052,40.0,9.9672,9.9589,40.0]
[1672578444260,40.0,9.9672,9.959,75.39]
[1672578444786,40.0,9.967,9.9591,40.0]
[1672578445005,40.0,9.967,9.9593,40.0]
[1672578445207,40.0,9.967,9.9594,75.38]
[1672578445424,40.0,9.967,9.9595,40.0]
[1672578445613,40.0,9.967,9.9597,40.0]
[1672578445820,40.0,9.967,9.9598,75.38]
[1672578446579,40.0,9.967,9.9594,75.38]
[1672578446789,40.0,9.9668,9.9592,75.39]
[1672578447719,40.0,9.9668,9.9593,40.0]
[1672578447927,40.0,9.9668,9.9594,75.38]
[1672578448140,40.0,9.9668,9.9595,40.0]
[1672578448341,40.0,9.9668,9.9597,40.0]
[1672578448555,63.8546,9.9668,9.9599,40.0]
[1672578448760,63.8546,9.9668,9.96,75.38]
[1672578448976,63.8546,9.9668,9.9597,40.0]
[1672578449182,63.8546,9.9668,9.9599,40.0]
[1672578449397,63.8546,9.9668,9.96,75.38]
[1672578449624,63.8546,9.9668,9.9601,40.0]
[1672578449940,63.8546,9.9668,9.9603,40.0]
[1672578450171,63.8546,9.9668,9.9599,40.0]
[1672578450466,63.8546,9.9668,9.9491,75.62056346]
[1672578450677,63.8546,9.9668,9.959,75.39]
[1672578450894,40.0,9.9666,9.9595,40.0]
[1672578451105,40.0,9.9666,9.9597,40.0]
[1672578451420,40.0,9.9666,9.9599,40.0]
[1672578451608,64.1044,9.9666,9.96,75.38]
[1672578452024,64.1044,9.9666,9.9594,75.38]
[1672578452237,64.1044,9.9666,9.9592,75.39]
[1672578452572,64.1044,9.9666,9.959,75.39]
[1672578453091,64.1044,9.9666,9.9591,40.0]
[1672578453301,64.1044,9.9666,9.9592,75.39]
[1672578453631,64.1044,9.9666,9.9593,40.0]
[1672578453946,64.1044,9.9666,9.9595,40.0]
[1672578454145,64.1044,9.9666,9.9596,75.38]
[1672578454336,64.1044,9.9666,9.9597,40.0]
[1672578454545,64.1044,9.9666,9.9599,40.0]
[1672578454755,64.1044,9.9666,9.9601,40.0]
[1672578454968,64.1044,9.9666,9.9602,75.38]
[1672578455176,64.1044,9.9666,9.9603,40.0]
[1672578455396,64.1044,9.9666,9.9605,40.0]
[1672578455612,64.1044,9.9666,9.9606,75.38]
[1672578455806,64.1044,9.9666,9.9607,40.0]
[1672578456017,24.1044,9.9666,9.9609,40.0]
[1672578456227,40.0,9.9665,9.9608,75.37]
[1672578456453,40.0,9.9665,9.9605,40.0]
[1672578456454,40.0,9.9665,9.9606,75.38]
[1672578456774,40.0,9.9665,9.9605,40.0]
[1672578457092,40.0,9.9665,9.9607,40.0]
[1672578457609,40.0,9.9665,9.9606,75.38]
[1672578457829,40.0,9.9665,9.9605,40.0]
[1672578458153,40.0,9.9665,9.9607,40.0]
[1672578459082,40.0,9.9665,9.9604,75.38]
[1672578459723,40.0,9.9665,9.9603,40.0]
[1672578459946,40.0,9.9665,9.9605,40.0]
[1672578460132,40.0,9.9665,9.9606,75.38]
[1672578460340,40.0,9.9665,9.9607,40.0]
[1672578460554,40.0,9.9665,9.9609,40.0]
[1672578460767,40.0,9.9665,9.961,75.37]
[1672578461723,40.0,9.9665,9.9611,40.0]
[1672578466335,40.0,9.9665,9.961,75.37]
[1672578466757,62.5426,9.9665,9.9495,75.62056346]
[1672578467383,62.5426,9.9665,9.9592,75.39]
[1672578467595,62.5426,9.9665,9.9587,40.0]
[1672578467808,62.5426,9.9665,9.9589,40.0]
[1672578468135,62.5426,9.9665,9.9591,40.0]
[1672578468332,62.5426,9.9665,9.9592,75.39]
[1672578468659,62.5426,9.9665,9.9593,40.0]
[1672578468872,62.5426,9.9665,9.9595,40.0]
[1672578469087,62.5426,9.9665,9.9597,40.0]
[1672578469278,62.5426,9.9665,9.9598,75.38]
[1672578469491,62.5426,9.9665,9.9599,40.0]
[1672578469712,62.5426,9.9665,9.9601,40.0]
[1672578469925,62.5426,9.9665,9.9603,40.0]
[1672578470759,40.0,9.9663,9.9603,40.0]
[1672578472325,40.0,9.9663,9.9602,75.38]
[1672578472554,40.0,9.9663,9.9601,40.0]
[1672578472740,40.0,9.9663,9.9602,75.38]
[1672578472956,40.0,9.9663,9.9603,40.0]
[1672578473165,40.0,9.9663,9.9605,40.0]
[1672578473390,40.0,9.9663,9.9607,40.0]
[1672578473603,40.0,9.9663,9.9608,75.37]
[1672578474759,40.0,9.9663,9.9606,75.38]
[1672578475155,40.0,9.9663,9.9604,75.38]
[1672578476748,40.0,9.9663,9.96,75.38]
[1672578476959,63.2514,9.9663,9.96,75.38]
[1672578477281,63.2514,9.9663,9.9601,40.0]
[1672578477470,63.2514,9.9663,9.9603,40.0]
[1672578477681,63.2514,9.9663,9.9605,40.0]
[1672578477891,63.2514,9.9663,9.9606,75.38]
[1672578480100,63.2514,9.9663,9.9605,40.0]
[1672578480328,63.2514,9.9663,9.9606,75.38]
[1672578480534,63.2514,9.9663,9.9605,40.0]
[1672578480746,63.2514,9.9663,9.9606,75.38]
[1672578481273,63.2514,9.9663,9.9594,75.38]
[1672578481461,63.2514,9.9663,9.9584,75.39]
[1672578481672,63.2514,9.9663,9.9583,40.0]
[1672578481878,63.2514,9.9663,9.9584,75.39]
[1672578482092,63.2514,9.9663,9.9585,40.0]
[1672578482320,63.2514,9.9663,9.9587,40.0]
[1672578482514,63.2514,9.9663,9.9588,75.39]
[1672578482726,63.2514,9.9663,9.9589,40.0]
[1672578482941,40.0,9.9661,9.959,75.39]
[1672578483370,40.0,9.9661,9.9588,75.39]
[1672578483581,40.0,9.9661,9.9583,40.0]
[1672578483885,40.0,9.9661,9.9585,40.0]
[1672578484095,40.0,9.9661,9.9586,75.39]
[1672578484724,40.0,9.9661,9.9587,40.0]
[1672578484930,40.0,9.9661,9.9588,75.39]
[1672578486211,40.0,9.9661,9.9572,40.0]
[1672578486412,40.0,9.9661,9.9575,40.0]
[1672578486612,40.0,9.9661,9.9577,302.3]
[1672578486825,40.0,9.9661,9.9579,342.3]
[1672578487033,64.4183,9.9661,9.958,75.39]
[1672578487263,64.4183,9.9661,9.9448,75.62056346]
[1672578487264,82.40776446,9.9651,9.9448,75.62056346]
[1672578487473,40.0,9.9616,9.9499,75.62056346]
[1672578487787,72.45034264,9.9615,9.95,705.42264404]
[1672578488001,303.30165377,9.9615,9.9501,75.45]
[1672578488208,129.03941113,9.9614,9.9502,1029.00964404]
[1672578488525,89.03941113,9.9613,9.9505,40.0]
[1672578488716,40.0,9.9612,9.9508,40.0]
[1672578488932,278.25584264,9.9612,9.951,302.3]
[1672578489138,40.0,9.961,9.9512,302.3]
[1672578489350,40.0,9.961,9.9515,40.0]
[1672578489685,40.0,9.9608,9.9518,40.0]
[1672578489880,40.0,9.9608,9.9521,40.0]
[1672578490087,40.0,9.9606,9.9523,302.3]
[1672578490293,40.0,9.9606,9.9525,302.3]
[1672578490507,222.79413795,9.9605,9.9526,769.94464404]
[1672578490729,40.0,9.9604,9.9527,651.90964404]
[1672578490928,144.68543795,9.9604,9.9528,75.43]
[1672578491133,104.68543795,9.9603,9.9529,651.90964404]
[1672578491364,40.0,9.9602,9.953,75.43]
[1672578491573,40.0,9.9602,9.9531,651.90964404]
[1672578491887,40.0,9.96,9.9532,75.43]
[1672578492096,40.0,9.96,9.9533,651.90964404]
[1672578492418,40.0,9.9598,9.9534,75.43]
[1672578492632,40.0,9.9598,9.9535,651.90964404]
[1672578492940,40.0,9.9598,9.9536,75.43]
[1672578492941,40.0,9.9596,9.9536,75.43]
[1672578493150,40.0,9.9596,9.9537,651.90964404]
[1672578493363,40.0,9.9594,9.9538,75.43]
[1672578493556,40.0,9.9594,9.9539,644.43121484]
[1672578493771,40.0,9.9594,9.954,75.43]
[1672578494106,40.0,9.9594,9.9541,631.43121484]
[1672578494608,104.68543795,9.9595,9.9541,631.43121484]
[1672578494816,144.68543795,9.9593,9.9541,631.43121484]
[1672578495257,40.0,9.9591,9.9541,631.43121484]
[1672578497344,144.68543795,9.9591,9.9541,631.43121484]
[1672578499464,40.0,9.9589,9.9541,631.43121484]
[1672578499878,264.31678666,9.9588,9.9541,631.43121484]
[1672578500077,40.0,9.9587,9.9541,631.43121484]
[1672578500286,304.31678666,9.9587,9.9541,631.43121484]
[1672578500495,264.31678666,9.9586,9.9541,631.43121484]
[1672578500724,40.0,9.9585,9.9541,631.43121484]
[1672578500921,320.12409452,9.9585,9.9541,631.43121484]
[1672578501132,40.0,9.9583,9.9541,631.43121484]
[1672578501456,264.31678666,9.9582,9.9541,631.43121484]
[1672578501773,304.31678666,9.9581,9.9541,631.43121484]
[1672578502183,193.72484908,9.958,9.9541,631.43121484]
[1672578502399,40.0,9.9579,9.9541,631.43121484]
[1672578502608,233.72484908,9.9579,9.9541,631.43121484]
[1672578502818,40.0,9.9577,9.9541,631.43121484]
[1672578503145,40.0,9.9575,9.9541,631.43121484]
[1672578503459,104.68543795,9.9574,9.9541,631.43121484]
[1672578503669,104.68543795,9.9574,9.9486,476.16121484]
[1672578503874,40.0,9.9573,9.9542,476.16121484]
[1672578504298,144.68543795,9.9573,9.9542,476.16121484]
[1672578504496,233.72484908,9.9573,9.9542,476.16121484]
[1672578509343,193.72484908,9.9573,9.9542,476.16121484]
[1672578509759,89.03941113,9.9573,9.9542,476.16121484]
[1672578512193,89.03941113,9.9603,9.9542,476.16121484]
[1672578512385,40.0,9.9602,9.9542,476.16121484]
[1672578512801,160.36820043,9.9601,9.9542,476.16121484]
[1672578513134,200.36820043,9.96,9.9542,476.16121484]
[1672578513666,40.0,9.9598,9.9542,476.16121484]
[1672578514063,71.3287893,9.9597,9.9542,476.16121484]
[1672578514714,89.03941113,9.9596,9.9542,476.16121484]
[1672578514921,89.03941113,9.9596,9.9543,75.42]
[1672578515130,89.03941113,9.9596,9.9545,40.0]
[1672578515345,89.03941113,9.9596,9.9546,75.42]
[1672578515659,89.03941113,9.9596,9.9547,40.0]
[1672578515978,89.03941113,9.9596,9.9549,40.0]
[1672578516197,89.03941113,9.9596,9.955,75.42]
[1672578516381,89.03941113,9.9596,9.9551,396.90777094]
[1672578523851,40.0,9.9595,9.9551,396.90777094]
[1672578524076,111.3287893,9.9595,9.9551,396.90777094]
[1672578524272,40.0,9.9593,9.9551,396.90777094]
[1672578524696,71.3287893,9.9592,9.9551,396.90777094]
[1672578526897,127.93534713,9.9591,9.9551,396.90777094]
[1672578527322,127.93534713,9.9591,9.9492,377.76]
[1672578527323,40.0,9.9589,9.9494,40.0]
[1672578527544,40.0,9.9589,9.9496,40.0]
[1672578527853,71.3287893,9.9588,9.9498,40.0]
[1672578528064,40.0,9.9587,9.9499,469.15077094]
[1672578528276,40.0,9.9587,9.95,433.69077094]
[1672578528491,40.0,9.9585,9.9502,40.0]
[1672578528701,40.0,9.9585,9.9504,40.0]
[1672578528895,40.0,9.9583,9.9505,469.14077094]
[1672578529225,40.0,9.9583,9.9506,433.69077094]
[1672578529439,40.0,9.9583,9.9508,40.0]
[1672578529626,40.0,9.9589,9.9509,469.14077094]
[1672578529836,40.0,9.9589,9.951,458.66587094]
[1672578530047,71.3287893,9.9588,9.9512,40.0]
[1672578530257,71.3287893,9.9588,9.9513,469.14077094]
[1672578530470,71.3287893,9.9588,9.9514,433.69077094]
[1672578530688,71.3287893,9.9588,9.9516,40.0]
[1672578530902,40.0,9.9587,9.9517,469.13077094]
[1672578531114,40.0,9.9587,9.9518,393.69077094]
[1672578531313,71.3287893,9.9586,9.9519,75.44]
[1672578531533,71.3287893,9.9586,9.952,393.69077094]
[1672578531731,71.3287893,9.9586,9.9521,75.44]
[1672578531942,71.3287893,9.9586,9.9522,393.69077094]
[1672578532160,71.3287893,9.9586,9.9523,75.44]
[1672578532358,71.3287893,9.9586,9.9524,393.69077094]
[1672578532574,71.3287893,9.9586,9.9525,75.44]
[1672578532800,71.3287893,9.9586,9.9526,349.75077094]
[1672578533010,71.3287893,9.9586,9.9527,75.44]
[1672578533200,71.3287893,9.9586,9.9529,40.0]
[1672578533410,71.3287893,9.9586,9.953,425.18077094]
[1672578533638,71.3287893,9.9586,9.9531,349.75077094]
[1672578533954,71.3287893,9.9586,9.9532,75.43]
[1672578534162,71.3287893,9.9586,9.9533,349.75077094]
[1672578534356,71.3287893,9.9586,9.9534,75.43]
[1672578534567,71.3287893,9.9586,9.9535,349.54077094]
[1672578534778,71.3287893,9.9586,9.9536,75.43]
[1672578534984,71.3287893,9.9586,9.9537,349.54077094]
[1672578535300,71.3287893,9.9586,9.9538,75.43]
[1672578535534,71.3287893,9.9586,9.9539,349.54077094]
[1672578541727,40.0,9.9585,9.9539,349.54077094]
[1672578542138,71.3287893,9.9584,9.9539,349.54077094]
[1672578546139,40.0,9.9583,9.9539,349.54077094]
[1672578546575,71.3287893,9.9582,9.9539,349.54077094]
[1672578547311,40.0,9.9581,9.9539,349.54077094]
[1672578547516,40.0,9.9581,9.9539,349.42206323]
[1672578547836,40.0,9.9579,9.954,283.39406323]
[1672578548158,40.0,9.9577,9.954,283.39406323]
[1672578548557,40.0,9.9575,9.954,283.39406323]
[1672578549101,40.0,9.9573,9.954,283.39406323]
[1672578549521,40.0,9.9571,9.954,283.39406323]
[1672578549928,40.0,9.9569,9.954,283.39406323]
[1672578550346,40.0,9.9567,9.954,283.39406323]
[1672578550775,40.0,9.9565,9.954,283.39406323]
[1672578551184,71.3287893,9.9564,9.954,283.39406323]
[1672578551394,40.0,9.9563,9.954,283.39406323]
[1672578551810,111.3287893,9.9563,9.954,283.39406323]
[1672578554240,158.52728471,9.9562,9.954,127.36406323]
[1672578554444,158.52728471,9.9562,9.9541,86.88636323]
[1672578554445,174.33459257,9.9562,9.9541,86.88636323]
[1672578554658,40.0,9.956,9.9467,75.48]
[1672578554973,40.0,9.956,9.941,40.0]
[1672578554974,197.69508814,9.9559,9.9412,302.3]
[1672578555191,197.69508814,9.9559,9.9411,75.52]
[1672578555192,40.0,9.9558,9.9414,302.3]
[1672578555415,40.0,9.9556,9.9416,40.0]
[1672578555620,35.53,9.9555,9.9418,302.3]
[1672578555835,40.0,9.9554,9.942,302.3]
[1672578556042,40.0,9.9552,9.9423,40.0]
[1672578556253,40.0,9.955,9.9426,40.0]
[1672578556452,20.0,9.9549,9.9428,302.3]
[1672578556655,40.0,9.9548,9.943,342.3]
[1672578556880,40.0,9.9546,9.9433,40.0]
[1672578557201,40.0,9.9544,9.9435,40.0]
[1672578557387,40.0,9.9542,9.9437,40.0]
[1672578557602,40.0,9.954,9.9439,40.0]
[1672578557807,20.0,9.9539,9.944,75.5]
[1672578558029,40.0,9.9538,9.944,75.5]
[1672578558247,20.0,9.9537,9.944,75.5]
[1672578558450,40.0,9.9536,9.944,75.5]
[1672578558652,111.3287893,9.9536,9.9432,40.0]
[1672578558870,40.0,9.9534,9.9433,75.51]
[1672578559081,20.0,9.9533,9.9433,75.51]
[1672578559304,20.0,9.9533,9.9427,24.9344]
[1672578559305,40.0,9.9532,9.9428,75.51]
[1672578559516,40.0,9.953,9.9428,100.4444]
[1672578559918,40.0,9.9528,9.9428,100.4444]
[1672578560455,40.0,9.9526,9.9429,40.0]
[1672578560667,40.0,9.9526,9.943,75.51]
[1672578560881,40.0,9.9524,9.9429,75.51]
[1672578561092,40.0,9.9522,9.9429,75.51]
[1672578561284,40.0,9.952,9.9429,75.51]
[1672578561723,40.0,9.9518,9.9429,75.51]
[1672578562130,40.0,9.9516,9.9429,75.51]
[1672578562546,40.0,9.9514,9.9428,24.9344]
[1672578562975,40.0,9.9512,9.9429,75.51]
[1672578563300,234.29312741,9.9511,9.9429,75.51]
[1672578563514,40.0,9.951,9.9429,75.51]
[1672578563821,274.29312741,9.951,9.9429,75.51]
[1672578564031,40.0,9.9508,9.9429,75.51]
[1672578564434,40.0,9.9506,9.9429,75.51]
[1672578564746,234.29312741,9.9507,9.9429,75.51]
[1672578564747,159.26413643,9.9505,9.9429,75.51]
[1672578565082,71.3287893,9.9504,9.943,40.0]
[1672578565289,71.3287893,9.9504,9.9432,40.0]
[1672578565482,71.3287893,9.9504,9.9433,75.51]
[1672578565692,71.3287893,9.9504,9.9434,40.0]
[1672578565913,71.3287893,9.9504,9.9435,75.5]
[1672578566127,71.3287893,9.9504,9.9436,40.0]
[1672578566449,71.3287893,9.9504,9.9437,75.5]
[1672578566644,71.3287893,9.9504,9.9434,40.0]
[1672578566858,71.3287893,9.9504,9.9436,40.0]
[1672578567084,71.3287893,9.9504,9.9437,75.5]
[1672578567271,71.3287893,9.9504,9.9433,75.51]
[1672578567477,40.0,9.9503,9.9431,75.51]
[1672578567912,71.3287893,9.9502,9.9429,75.51]
[1672578568116,71.3287893,9.9502,9.943,40.0]
[1672578568336,71.3287893,9.9502,9.9431,75.51]
[1672578569806,71.3287893,9.9502,9.9387,40.0]
[1672578569807,71.3287893,9.9502,9.943,40.0]
[1672578570018,71.3287893,9.9502,9.9431,75.51]
[1672578570225,71.3287893,9.9502,9.9432,40.0]
[1672578570428,71.3287893,9.9502,9.9434,40.0]
[1672578570756,202.96433811,9.9501,9.9435,75.5]
[1672578570964,202.96433811,9.9501,9.9429,75.51]
[1672578571167,40.0,9.9499,9.9388,75.54]
[1672578571378,40.0,9.9499,9.9389,40.0]
[1672578571604,40.0,9.9497,9.9391,40.0]
[1672578571918,40.0,9.9495,9.9393,40.0]
[1672578572131,40.0,9.9495,9.9394,75.54]
[1672578572445,40.0,9.9493,9.9395,40.0]
[1672578572647,40.0,9.9493,9.9397,40.0]
[1672578572849,40.0,9.9491,9.9398,75.53]
[1672578573287,40.0,9.9489,9.9398,75.53]
[1672578573714,40.0,9.9487,9.9398,75.53]
[1672578574231,40.0,9.9485,9.9398,75.53]
[1672578574440,40.0,9.9485,9.9397,40.0]
[1672578574441,40.0,9.9485,9.9419,75.52]
[1672578574651,40.0,9.9483,9.9416,75.52]
[1672578574965,40.0,9.9481,9.9416,75.52]
[1672578575387,40.0,9.9479,9.9416,75.52]
[1672578575807,40.0,9.9477,9.9416,75.52]
[1672578576211,234.29312741,9.9476,9.939,75.54]
[1672578576434,71.3287893,9.9476,9.942,40.0]
[1672578576631,71.3287893,9.9476,9.9422,40.0]
[1672578576968,71.3287893,9.9476,9.9333,22.6811]
[1672578576969,71.3287893,9.9476,9.9423,75.51]
[1672578577273,71.3287893,9.9476,9.9419,75.52]
[1672578579469,71.3287893,9.9476,9.942,40.0]
[1672578579680,71.3287893,9.9476,9.9421,75.52]
[1672578579896,71.3287893,9.9476,9.9422,40.0]
[1672578580111,71.3287893,9.9476,9.9423,75.51]
[1672578580431,71.3287893,9.9476,9.9419,75.52]
[1672578580621,71.3287893,9.9476,9.943,40.0]
[1672578580828,71.3287893,9.9476,9.9429,75.51]
[1672578582627,71.3287893,9.9476,9.9421,40.0]
[1672578582943,71.3287893,9.9476,9.9422,75.51]
[1672578583780,71.3287893,9.9476,9.942,40.0]
[1672578583989,40.0,9.9498,9.9421,75.52]
[1672578584194,40.0,9.9498,9.942,40.0]
[1672578584416,40.0,9.9498,9.9421,75.52]
[1672578584826,948.08246559,9.9499,9.9429,75.51]
[1672578585041,948.08246559,9.9499,9.943,40.0]
[1672578585254,948.08246559,9.9499,9.942,40.0]
[1672578585496,40.0,9.9498,9.9421,75.52]
[1672578585676,40.0,9.9498,9.9422,40.0]
[1672578585893,40.0,9.9498,9.9423,75.51]
[1672578586100,109.07545597,9.9498,9.9423,75.51]
[1672578586415,69.07545597,9.9498,9.9429,40.0]
[1672578586946,40.0,9.9497,9.9423,75.51]
[1672578587257,40.0,9.9497,9.9424,40.0]
[1672578587457,40.0,9.9497,9.9425,75.51]
[1672578587657,40.0,9.9497,9.9419,75.52]
[1672578587865,40.0,9.9497,9.9429,75.51]
[1672578589459,109.07545597,9.9497,9.9429,75.51]
[1672578590611,109.07545597,9.9497,9.9419,75.52]
[1672578590810,109.07545597,9.9497,9.942,40.0]
[1672578591020,109.07545597,9.9497,9.9421,75.52]
[1672578591230,109.07545597,9.9497,9.9419,75.52]
[1672578591455,109.07545597,9.9497,9.942,40.0]
[1672578591666,109.07545597,9.9497,9.9421,75.52]
[1672578592289,109.07545597,9.9497,9.9419,75.52]
[1672578593908,109.07545597,9.9497,9.942,40.0]
[1672578594093,109.07545597,9.9497,9.9421,75.52]
[1672578595267,109.07545597,9.9497,9.9387,40.0]
[1672578595268,109.07545597,9.9497,9.9419,75.52]
[1672578595893,109.07545597,9.9497,9.942,40.0]
[1672578596205,109.07545597,9.9497,9.9421,75.52]
[1672578596418,109.07545597,9.9497,9.9419,75.52]
[1672578597562,40.0,9.9495,9.9419,75.52]
[1672578597989,40.0,9.9493,9.9419,75.52]
[1672578598411,40.0,9.9491,9.9419,75.52]
[1672578598827,40.0,9.9489,9.9419,75.52]
[1672578599777,69.07545597,9.949,9.942,40.0]
[1672578599994,69.07545597,9.949,9.9421,75.52]
[1672578600321,69.07545597,9.949,9.9422,40.0]
[1672578600626,69.07545597,9.949,9.9423,75.51]
[1672578600815,40.0,9.9489,9.9421,75.52]
[1672578601973,40.0,9.9489,9.9419,75.52]
[1672578602831,69.07545597,9.949,9.942,40.0]
[1672578603040,69.07545597,9.949,9.9421,75.52]
[1672578603872,40.0,9.9489,9.9421,75.52]
[1672578604080,69.07545597,9.949,9.9421,75.52]
[1672578604294,69.07545597,9.949,9.9419,75.52]
[1672578604514,40.0,9.9489,9.9419,75.52]
[1672578605145,40.0,9.9489,9.942,40.0]
[1672578605355,69.07545597,9.949,9.9421,75.52]
[1672578605578,69.07545597,9.949,9.9422,40.0]
[1672578605784,69.07545597,9.949,9.9429,75.51]
[1672578605976,69.07545597,9.949,9.943,40.0]
[1672578606186,69.07545597,9.949,9.9432,40.0]
[1672578607041,69.07545597,9.949,9.9433,75.51]
[1672578607257,69.69592665,9.9489,9.9419,115.52]
[1672578607674,76.21772697,9.9488,9.9419,115.52]
[1672578608001,69.69592665,9.9487,9.9419,115.52]
[1672578608400,145.91365362,9.9487,9.9419,115.52]
[1672578608712,40.0,9.9486,9.9419,115.52]